Cogmind - Beta 16 @@@ ROGUE MODE // 2025.11.15 @ 14:38:14 Player: ChromeKnight Result: Destroyed by 6A-AJG(R) with Subdweller Beam Cannon Performance ------------- Evolutions (0) 0 Regions Visited (3) 600 Robots Destroyed (11) 55 Value Destroyed (350) 350 Prototype IDs (0) 0 Alien Tech Used (0) 0 Bonus (0) 0 TOTAL SCORE: 1005 Bonus ------- None Cogmind --------- Core Integrity 0/250 Matter 145/300 Energy 100/100 System Corruption 0% Temperature Cool (9) Movement Treading (160) Location -10/Subcaves Parts ------- > --- POWER (1) -------- (None) > --- PROPULSION (2) --- Light Treads Light Treads > --- UTILITY (2) ------ Large Storage Unit Light Armor Plating > --- WEAPON (2) ------- Grenade Launcher > --- INVENTORY (15) --- Light Ion Engine Light Treads Light Treads Light Treads Light Treads Light Treads Light Treads Light Armor Plating Gun Armor Medium Laser Subdweller Machine Gun Peak State ------------ > --- POWER ------------ Improved Ion Engine > --- PROPULSION ------- Light Treads Light Treads > --- UTILITY ---------- Large Storage Unit Light Armor Plating > --- WEAPON ----------- Medium Laser Subdweller Machine Gun > --- INVENTORY -------- Light Ion Engine Light Treads Light Treads Light Treads Light Treads Light Treads Light Treads Light Treads Light Armor Plating Light Armor Plating Medium Laser Grenade Launcher [Rating: 10] Favorites ----------- Power Light Ion Engine Engine Light Ion Engine Propulsion Light Treads Treads Light Treads Utility Light Armor Plating Storage Large Storage Unit Protection Light Armor Plating Weapon Medium Laser Energy Gun Medium Laser Ballistic Gun Subdweller Machine Gun Launcher Grenade Launcher Build | -11 -10 -10 -10 ------- Run | Yrd Mat Min Sub Slots Evolved . | . . . . Power . | . . . . Propulsion . | . . . . Utility . | . . . . Weapon . | . . . . Parts Attached 13 | 6 2 1 4 Power 2 | 1 . 1 . Engine 2 | 1 . 1 . Core . | . . . . Reactor . | . . . . Propulsion 3 | 2 . . 1 Treads 3 | 2 . . 1 Leg . | . . . . Wheel . | . . . . Hover . | . . . . Flight . | . . . . Utility 4 | 1 2 . 1 Device . | . . . . Storage 2 | 1 1 . . Processor . | . . . . Hackware . | . . . . Protection 2 | . 1 . 1 Artifact . | . . . . Weapon 4 | 2 . . 2 Energy Gun 2 | 2 . . . Energy Cannon . | . . . . Ballistic Gun 1 | . . . 1 Ballistic Cannon . | . . . . Launcher 1 | . . . 1 Special Weapon . | . . . . Impact Weapon . | . . . . Slashing Weapon . | . . . . Piercing Weapon . | . . . . Special Melee Weapon . | . . . . Unidentified Prototypes . | . . . . Parts Lost 3 | . . . 3 Power 1 | . . . 1 Propulsion 1 | . . . 1 Utility . | . . . . Weapon 1 | . . . 1 Highest Loss Streak 1 | . . . 1 To Critical Strikes . | . . . . Average Backups 10 | . 7 11 12 Power . | . . . 1 Propulsion 5 | . 3 7 6 Utility 2 | . 1 2 2 Weapon 1 | . 1 2 2 Tool/Special . | . . . . Unused Backups 9 | . . . 9 Power . | . . . . Propulsion 6 | . . . 6 Utility 2 | . . . 2 Weapon 1 | . . . 1 Tool/Special . | . . . . Average Slot Usage (%) 93 | . 99 100 88 Engine 9 | . 14 14 5 Treads 27 | . 28 28 26 Storage 14 | . 14 14 14 Protection 13 | . 13 14 14 Energy Gun 22 | . 28 28 17 Ballistic Gun 3 | . . . 6 Launcher 1 | . . . 2 Peak Build Rating 10 | 6 8 9 10 Average Rating 8 | 4 7 8 8 On Entrance 5 | . 6 8 9 Avg Prop Armor Cover (%) . | . . . . Naked Turns . | . . . . Heaviest Build 36 | 11 29 33 36 Greatest Support 40 | 40 40 40 40 Greatest Overweight (x) 2 | 2 . . 1 Average Overweight (x) . | . . . . Largest Inventory Capacity 15 | 8 15 15 15 Average Capacity 13 | 7 10 15 15 Most Carried 13 | 1 11 12 13 Average Carried 10 | . 7 11 11 Final Capacity 15 | 8 15 15 15 Final Carried 12 | 1 11 12 11 Class Distribution -------------------- 100% | Mutant Dominant Class ---------------- Mutant | -10/Materials Mutant | -10/Mines Mutant | -10/Subcaves Resources | -11 -10 -10 -10 ----------- Run | Yrd Mat Min Sub Matter Collected 324 | 253 . 37 34 Remotely . | . . . . Salvage Created 292 | . 43 . 249 Parts 15 | . 4 . 11 Haulers Intercepted . | . . . . Recyclers Shooed . | . . . . Parts Field Recycled . | . . . . Retrieved Matter . | . . . . Parts Self-Destructed 8 | . . . 8 Prevented . | . . . . Parts Restored . | . . . . Kills | -11 -10 -10 -10 ------- Run | Yrd Mat Min Sub Combat Hostiles Destroyed 11 | . 3 . 8 Guns 7 | . 3 . 4 AOE 4 | . . . 4 Classes Destroyed 2 | . 1 . 1 Swarmer 3 | . 3 . . Subdweller 8 | . . . 8 Best Kill Streak 4 | . 2 . 4 Combat Bots Only 4 | . 2 . 4 Max Kills in Single Turn 1 | . 1 . 1 Gunslinging . | . . . . Exploded 1 | . . . 1 Melee . | . . . . Uniques/NPCs Destroyed . | . . . . Combat | -11 -10 -10 -10 -------- Run | Yrd Mat Min Sub Hostile Shots Fired 74 | . 17 2 55 Missed 25 | . 2 1 22 Hits 49 | . 15 1 33 Projectile 49 | . 15 1 33 Damage Taken 874 | . 113 17 744 Core 263 | . 7 . 256 Absorbed by Shields . | . . . . Core Remaining (%) 100 | 100 . . . Volleys Fired 50 | . 9 . 41 Largest 2 | . 2 . 2 Hottest 90 | . 90 . 90 Shots Fired 86 | . 18 . 68 Gun 72 | . 18 . 54 Cannon . | . . . . Launcher 14 | . . . 14 Special . | . . . . Kinetic 12 | . . . 12 Thermal 60 | . 18 . 42 Explosive 14 | . . . 14 Electromagnetic . | . . . . Robot Hit Streak 18 | . 2 . 18 Robot Miss Streak 3 | . 3 . 2 Penetration Max . | . . . . Secondary Targets 1 | . 1 . . Max Gunslinging Chain 1 | . 1 . . Shots Hit Robots 63 | . 7 . 56 Core Hits 19 | . 3 . 16 Critical Kills . | . . . . Critical Parts Destroyed . | . . . . Critical Strikes 1 | . . . 1 Burn 1 | . . . 1 Melee Attacks . | . . . . Impact . | . . . . Slashing . | . . . . Piercing . | . . . . Sneak Attacks . | . . . . Combat Hostiles . | . . . . Follow-up Attacks . | . . . . Damage Inflicted 1543 | . 88 . 1455 Guns 694 | . 88 . 606 Cannons . | . . . . Explosions 849 | . . . 849 Melee . | . . . . Ramming . | . . . . Kinetic 200 | . . . 200 Thermal 494 | . 88 . 406 Explosive 849 | . . . 849 Electromagnetic . | . . . . Impact . | . . . . Slashing . | . . . . Piercing . | . . . . Highest Corruption . | . . . . Average Corruption . | . . . . Corruption Purged . | . . . . Corruption Blocked . | . . . . Overload Shots . | . . . . Overflow Damage . | . . . . Projectiles . | . . . . Explosions . | . . . . Melee . | . . . . Knockbacks . | . . . . Impact . | . . . . Kinetic . | . . . . Secondary . | . . . . Self-Inflicted Damage 47 | . . . 47 Shots 2 | . . . 2 Rammed . | . . . . Targets Rammed . | . . . . Kicked . | . . . . Crushed . | . . . . Highest Temperature 195 | . 195 . 6 Average Temperature 89 | . 91 . 6 Received Heat Transfer 126 | . . . 126 Siege Activations . | . . . . Martial Activations . | . . . . Shielding Activations . | . . . . Robots Disrupted . | . . . . Combat Hostiles . | . . . . Robots Corrupted . | . . . . Combat Hostiles . | . . . . Parts Fried . | . . . . Impact Corruptions . | . . . . Robots Melted . | . . . . Combat Hostiles . | . . . . Parts Melted . | . . . . Heat Transferred 1423 | . 235 . 1188 Parts Sabotaged . | . . . . Parts Stolen . | . . . . Parts Stripped . | . . . . Power Chain Reactions . | . . . . Alert | -11 -10 -10 -10 ------- Run | Yrd Mat Min Sub Maximum Alert Level . | . . . . Low Security (%) 100 | 100 100 100 . Level 1 . | . . . . Level 2 . | . . . . Level 3 . | . . . . Level 4 . | . . . . Level 5 . | . . . . High Security . | . . . . Max Security . | . . . . Peak Influence 50 | . 50 15 . Initial 15 | . . 15 . Average 4 | . 6 2 . Influence Increases 70 | . 70 . . Destroy 0b10 Robot/C 60 | . 60 . . Destroy Leader 10 | . 10 . . Influence Decreases 70 | . 30 40 . Entered New Map 25 | . . 25 . Time Decay 45 | . 30 15 . Squads Dispatched . | . . . . Investigation . | . . . . Extermination . | . . . . Reinforcement . | . . . . Assault . | . . . . Garrison . | . . . . Intercept . | . . . . Searches Triggered . | . . . . Construction Impeded . | . . . . Haulers Reinforced . | . . . . Active Scanning Responses . | . . . . Cargo Convoy Interrupts . | . . . . Stealth | -11 -10 -10 -10 --------- Run | Yrd Mat Min Sub Distress Signals 1 | . 1 . . Communications Jammed . | . . . . Distress Signals . | . . . . Times Spotted 18 | . 5 3 10 Peak Tracking Total 4 | . 2 2 4 Tactical Retreats 1 | . . . 1 Traps | -11 -10 -10 -10 ------- Run | Yrd Mat Min Sub Traps Triggered . | . . . . Indirectly . | . . . . Trap Hack Attempts . | . . . . Triggered . | . . . . Disarmed . | . . . . Reprogrammed . | . . . . Reused . | . . . . Traps Extracted . | . . . . Installed . | . . . . Triggered . | . . . . Machines | -11 -10 -10 -10 ---------- Run | Yrd Mat Min Sub Machines Disabled . | . . . . Max in Single Turn . | . . . . Machines Repaired . | . . . . Machines Dismantled . | . . . . Machines Sabotaged . | . . . . Overloaded Fab Kills . | . . . . Hacking | -11 -10 -10 -10 --------- Run | Yrd Mat Min Sub Machines Accessed . | . . . . Terminals . | . . . . Fabricators . | . . . . Repair Stations . | . . . . Recycling Units . | . . . . Scanalyzers . | . . . . Garrison Access . | . . . . Total Hacks . | . . . . Successful . | . . . . Failed . | . . . . Catastrophic . | . . . . Database Lockouts . | . . . . Manual . | . . . . Terminals . | . . . . Fabricators . | . . . . Repair Stations . | . . . . Recycling Units . | . . . . Scanalyzers . | . . . . Garrison Access . | . . . . Terminal Hacks . | . . . . Fabricator Hacks . | . . . . Repair Station Hacks . | . . . . Recycling Unit Hacks . | . . . . Scanalyzer . | . . . . Garrison Access Hacks . | . . . . Unauthorized Hacks . | . . . . Terminals . | . . . . Fabricators . | . . . . Repair Stations . | . . . . Recycling Units . | . . . . Scanalyzers . | . . . . Garrison Access . | . . . . Data Cores Recovered . | . . . . Used . | . . . . Hacking Detections . | . . . . Full Trace Events . | . . . . Feedback Events . | . . . . Feedback Blocked . | . . . . Robot Schematics Acquired . | . . . . Robots Built . | . . . . Authchips . | . . . . Time . | . . . . Total Robot Build Rating . | . . . . Part Schematics Acquired . | . . . . Parts Built . | . . . . Authchips . | . . . . Time . | . . . . Total Part Build Rating . | . . . . Part Studies Acquired . | . . . . Parts Repaired . | . . . . Time . | . . . . Parts Recycled . | . . . . Recycled Matter . | . . . . Retrieved Matter . | . . . . Retrieved Components . | . . . . Parts Scanalyzed . | . . . . Part Schematics Acquired . | . . . . Parts Damaged . | . . . . Bothacking | -11 -10 -10 -10 ------------ Run | Yrd Mat Min Sub Used RIF Installer . | . . . . Robots Hacked . | . . . . Non-combat . | . . . . Combat . | . . . . Robot Hacks Applied . | . . . . Relay Couplers Released . | . . . . Fabnet Peak Effective % . | . . . . Robots Rewired . | . . . . Allies Hacked . | . . . . Hacks Repelled . | . . . . Allies | -11 -10 -10 -10 -------- Run | Yrd Mat Min Sub Total Allies . | . . . . Largest Group . | . . . . Highest-Rated Group . | . . . . Highest-Rated Ally . | . . . . Total Orders . | . . . . Ally Attacks . | . . . . Total Damage . | . . . . Kills . | . . . . Allies Corrupted . | . . . . Allies Melted . | . . . . Intel | -11 -10 -10 -10 ------- Run | Yrd Mat Min Sub Active Infowar (turns) . | . . . . Robot Analysis Total . | . . . . Derelict Logs Recovered 2 | . . 1 1 Drone Launches . | . . . . Drone Recoveries . | . . . . Exploration | -11 -10 -10 -10 ------------- Run | Yrd Mat Min Sub Turns Passed 1084 | 53 318 185 528 Spaces Moved 507 | 34 173 99 201 Core 11 | 11 . . . Treads 496 | 23 173 99 201 Legs . | . . . . Wheels . | . . . . Hover . | . . . . Flight . | . . . . Fastest Speed 50 | 50 160 160 160 Average Speed 159 | 130 160 160 164 Slowest Speed 240 | 160 160 160 240 Overloaded Moves . | . . . . Propulsion Burnouts . | . . . . Robots Hopped . | . . . . Potential Cave-ins 2 | . . . 2 Cave-ins Triggered . | . . . . Exploration Rate (%) 16 | 4 28 21 12 Regions Visited 3 Branch Regions 2 Pre-discovered Areas . | . . . . Known Exits Taken . | . . . . Unknown Exits Taken 3 | 1 1 1 . Scrap Searched . | . . . . Spaces Dug . | . . . . Terrain Destroyed 67 | . . . 67 Melee . | . . . . Projectile 1 | . . . 1 AOE 66 | . . . 66 Terrain Rammed . | . . . . Walls Destroyed . | . . . . Machines Disabled . | . . . . Actions | -11 -10 -10 -10 --------- Run | Yrd Mat Min Sub Total 692 | 40 196 125 331 Wait 110 | . 2 26 82 Move 504 | 33 172 98 201 Hop . | . . . . Pick Up 12 | 1 10 . 1 Fast Attach 8 | 6 1 . 1 Attach 1 | . . . 1 Detach . | . . . . Swap 4 | . 1 1 2 Drop 3 | . 1 . 2 Fire 50 | . 9 . 41 Melee . | . . . . Ram . | . . . . Kick . | . . . . Crush . | . . . . Escape Stasis . | . . . . Rewire . | . . . . Trap . | . . . . Miscellaneous . | . . . . Route ------- -11/Scrapyard -10/Materials (discovered 2 exits: [*Mat] / [*Min]) -10/Mines -10/Subcaves History --------- Turn | Location | Event 27 | -11/Scrapyard | Discovered new exit (range 16) 54 | -11/Scrapyard | Entered Materials 136 | -10/Materials | Discovered new exit (range 9) 237 | -10/Materials | Discovered new exit (range 16) 310 | -10/Materials | Build established: Mutant 372 | -10/Materials | Entered Mines 393 | -10/Mines | Joined a pair of Derelicts in attacking an 0b10 outpost 444 | -10/Mines | Learned Materials security intel 540 | -10/Mines | Discovered new exit (range 12) 557 | -10/Mines | Entered Subcaves 558 | -10/Subcaves | Approached by a straggling Scientist 677 | -10/Subcaves | A Subdweller sparked back to life 677 | -10/Subcaves | A Subdweller sparked back to life 677 | -10/Subcaves | A Subdweller sparked back to life 703 | -10/Subcaves | Ambushed by Subdweller buried in earth 728 | -10/Subcaves | Core integrity fell below 50% 747 | -10/Subcaves | Learned Materials emergency access door positions 802 | -10/Subcaves | Found Prototype Protection 1001 | -10/Subcaves | Core integrity fell below 20% 1006 | -10/Subcaves | Ambushed by Subdweller buried in earth 1008 | -10/Subcaves | Ambushed by Subdweller buried in earth 1085 | -10/Subcaves | Destroyed by 6A-AJG(R) with Subdweller Beam Cannon Last Messages --------------- 00802_ Acquired Prototype Protection. 00816_ Subatomizers dissect the Sml. Laser. 00818_ Lgt. Treads destroyed. 00821_ 1B-RRR(R) destroyed. 00831_ Subatomizers dissect the Sml. Laser. 00831_ Acquired 7 matter. 00860_ Acquired 10 matter. 01002_ Z1-N1Y(R) destroyed. 01006_ WD-UVL(R) affixes Scrap Shield Fragment to Scrap Shield. 01007_ 9E-4XP(R): "ARGHSUB!" 01009_ 5F-6A3(R): "ARGHSUB!" 01012_ WD-UVL(R) destroyed. 01015_ The unstable cave ceiling collapses. 01016_ 9E-4XP(R) destroyed. 01017_ Med. Laser destroyed. 01021_ The unstable cave ceiling collapses. 01022_ 5F-6A3(R) destroyed. 01026_ Dropped Lgt. Armor Plating. 01033_ The unstable cave ceiling collapses. Map ----- +----------------------------------------------------+ | ????????????# ### #????????????????????? | | ????????????# ## #????????????????????? | | ????????????# ## #????????????????????? | | ????????????# ### ! ##???????????????????? | | ????????????####### # #???????????????????? | | ??????????????????## # #???????????????????? | | ??????????????????# # #& #???????????????????? | | ??????????????????### ##???????????????????? | | ???????????????????# #???????????????????? | | ???????????????????# # ###???????????????????? | | ???????????????????## ##????????????????????? | | ????????????????????#### #?????????????????????? | | ????????????????????## #?????????????????????? | | ???????????????????## #?????????????????????? | | ??????????????????## #?????????????????????? | | ??????????????????# #?????????????????????? | | ??????????????????# ##??????##?????????????? | | ??????????????????## #??????# #?????????????? | | ???????????????????## ##????# #?????????????? | | ????????????????????## ##### ##????????????? | | ?????????????????????## #; #????????????? | | ?????????????????????## #???????????????? | | ?????????????????????# ###???????????????? | | ?????????????????????### ##?????????????????? | | ???????????????????????## ##??????????????????? | | ???????????????????????# @ ##???????????????????? | | ???????????????????????# #????????????????????? | | ??????????????????????# #???????????????????? | | ??????????????????????# ##???????????????????? | | ??????????????????????# R ????????????????????? | | ??????????????????????# #???????????????????? | | ?????????????????????? #??????????????????? | | ?????????????????????#< ## ##??????????????????? | | ???????????????????? ?# #???????????????????? | | ???????????????????# #< ? #???????????????????? | | ??????????????????& "## ? "???????????????????? | | ?????????????????###?? ? ## "#??????????????????? | | ??????????????????????#??#?? "#??????????????????? | | ???????????????????????????? "#??????????????????? | | ????????????????????????????"##??????????????????? | | ????????????????????????????"#???????????????????? | | ?????????????????????????????????????????????????? | | ?????????????????????????????????????????????????? | | ?????????????????????????????????????????????????? | | ?????????????????????????????????????????????????? | | ?????????????????????????????????????????????????? | | ?????????????????????????????????????????????????? | | ?????????????????????????????????????????????????? | | ?????????????????????????????????????????????????? | | ?????????????????????????????????????????????????? | +----------------------------------------------------+ Best States ------------- Heat Dissipation 25 Energy Generation 12 Energy Capacity 265 Matter Stores 300 Matter Capacity 300 Sight Range 16 Terrain Scan Density 10 Armor Coverage 150 Evasion (%) 40 Recoil Reduction 2 Item Schematics ----------------- None Robot Schematics ------------------ None Fabricated ------------ Nothing Repaired ---------- Nothing Studied --------- None Alien Tech Used ----------------- None Achievements -------------- None Challenges ------------ None Game ------ Seed AlertFieldInjector Manual? 0 Play Time 00:06:59 Cumulative 547.1 hours Start 2025.11.15 @ 14:12:54 End 2025.11.15 @ 14:38:14 Sessions 1 Manual Loads 0 Difficulty Rogue Special Mode None Game No. 885 Rogue 730 Adventurer 148 Explorer 7 Win Type - Total 26 Types 20/1/4/1/0/0/0/0/0/0 Lore% 79 Gallery% 81 Achievement% 66 Wizard Run 0 Options --------- Layout 1 ASCII 0 Keyboard 0 Movement Numpad Keybinds 0 Fullscreen 2 Font 24/Smallcaps Map View 50x40 Zoom Use 0% Tactical HUD 1 Map Filters NONE Filters NONE Steam 1 RUN: 2f3f3dbe-aaab-4313-9ca0-98e5474fab48